[Event "Early-Titled-Tuesday-Blitz-May-14-2024"]
[Site "Chess.com"]
[Date "2024.05.14"]
[Round "7"]
[White "Iball95"]
[Black "lamomiajunior"]
[Result "1-0"]
[WhiteElo "2928"]
[BlackElo "2774"]
[TimeControl "180+1"]
[EndTime "9:13:56 PDT"]
[Termination "Iball95 won by resignation"]

1. e4 {[%clk 0:03:00.9]} 1... c5 {[%clk 0:02:58.7]} 2. Nf3 {[%clk 0:03:01.4]}
2... d6 {[%clk 0:02:59.1]} 3. Nc3 {[%clk 0:03:01.9]} 3... Nf6 {[%clk 0:02:58.7]}
4. d4 {[%clk 0:03:02.5]} 4... cxd4 {[%clk 0:02:58.3]} 5. Qxd4 {[%clk 0:03:03.4]}
5... Nc6 {[%clk 0:02:56.1]} 6. Bb5 {[%clk 0:03:02.7]} 6... Bd7 {[%clk
0:02:56.6]} 7. Bxc6 {[%clk 0:03:03.3]} 7... Bxc6 {[%clk 0:02:57.5]} 8. Bg5
{[%clk 0:03:03.2]} 8... e6 {[%clk 0:02:55.7]} 9. O-O-O {[%clk 0:03:03.7]} 9...
Be7 {[%clk 0:02:55.5]} 10. Rhe1 {[%clk 0:03:04.3]} 10... O-O {[%clk 0:02:49.9]}
11. e5 {[%clk 0:03:04.5]} 11... dxe5 {[%clk 0:02:50.1]} 12. Nxe5 {[%clk
0:03:05.4]} 12... Qxd4 {[%clk 0:02:45.8]} 13. Rxd4 {[%clk 0:03:06.3]} 13... Bxg2
{[%clk 0:02:42.8]} 14. Nd7 {[%clk 0:03:05.5]} 14... Rfd8 {[%clk 0:02:36.6]} 15.
Bxf6 {[%clk 0:03:03.5]} 15... gxf6 {[%clk 0:02:37.4]} 16. Rg1 {[%clk 0:03:02.8]}
16... f5 {[%clk 0:02:21.5]} 17. Rxg2+ {[%clk 0:03:02.4]} 17... Kh8 {[%clk
0:02:22]} 18. Ne5 {[%clk 0:03:02.5]} 1-0

[Event "Early-Titled-Tuesday-Blitz-May-14-2024"]
[Site "Chess.com"]
[Date "2024.05.14"]
[Round "7"]
[White "Casper"]
[Black "Galileo22"]
[Result "1-0"]
[WhiteElo "2516"]
[BlackElo "2632"]
[TimeControl "180+1"]
[EndTime "9:14:04 PDT"]
[Termination "Casper won by resignation"]

1. e4 {[%clk 0:02:57.1]} 1... c6 {[%clk 0:02:58.2]} 2. Nf3 {[%clk 0:02:54.8]}
2... d6 {[%clk 0:02:55.9]} 3. d4 {[%clk 0:02:54.1]} 3... Nf6 {[%clk 0:02:54.2]}
4. Nbd2 {[%clk 0:02:54.4]} 4... Qc7 {[%clk 0:02:51]} 5. c3 {[%clk 0:02:52]} 5...
e5 {[%clk 0:02:50.8]} 6. Bc4 {[%clk 0:02:51.9]} 6... Be7 {[%clk 0:02:44.7]} 7.
O-O {[%clk 0:02:51.8]} 7... h6 {[%clk 0:02:39.1]} 8. h3 {[%clk 0:02:51.3]} 8...
Nbd7 {[%clk 0:02:38.9]} 9. a4 {[%clk 0:02:51]} 9... b6 {[%clk 0:02:36.8]} 10.
Re1 {[%clk 0:02:49.7]} 10... Nf8 {[%clk 0:02:34.5]} 11. Nf1 {[%clk 0:02:49.3]}
11... g5 {[%clk 0:02:25]} 12. Qb3 {[%clk 0:02:48.3]} 12... Bf5 {[%clk
0:02:18.1]} 13. Bxf7+ {[%clk 0:02:43.7]} 1-0

[Event "Early-Titled-Tuesday-Blitz-May-14-2024"]
[Site "Chess.com"]
[Date "2024.05.14"]
[Round "7"]
[White "LangesNasenhaar"]
[Black "Adar_07"]
[Result "0-1"]
[WhiteElo "2479"]
[BlackElo "2728"]
[TimeControl "180+1"]
[EndTime "9:14:47 PDT"]
[Termination "Adar_07 won by resignation"]

1. d4 {[%clk 0:03:00.9]} 1... Nf6 {[%clk 0:02:58]} 2. Nf3 {[%clk 0:03:01]} 2...
e6 {[%clk 0:02:57.8]} 3. g3 {[%clk 0:03:01]} 3... c5 {[%clk 0:02:56.2]} 4. Bg2
{[%clk 0:03:00.4]} 4... cxd4 {[%clk 0:02:56.1]} 5. O-O {[%clk 0:03:00.6]} 5...
Nc6 {[%clk 0:02:54.4]} 6. b3 {[%clk 0:02:59.9]} 6... e5 {[%clk 0:02:54.2]} 7. c3
{[%clk 0:02:51.1]} 7... dxc3 {[%clk 0:02:44.8]} 8. Nxc3 {[%clk 0:02:51.2]} 8...
Be7 {[%clk 0:02:43.1]} 9. Bg5 {[%clk 0:02:49.4]} 9... O-O {[%clk 0:02:38.5]} 10.
Bxf6 {[%clk 0:02:48.4]} 10... Bxf6 {[%clk 0:02:39.4]} 11. Nd5 {[%clk 0:02:48.7]}
11... d6 {[%clk 0:02:39.1]} 12. Nd2 {[%clk 0:02:41.4]} 12... Be6 {[%clk
0:02:38.6]} 13. Rc1 {[%clk 0:02:34]} 13... Rc8 {[%clk 0:02:35.9]} 14. Nc4 {[%clk
0:02:33.5]} 14... Nd4 {[%clk 0:02:31.3]} 15. Nxf6+ {[%clk 0:02:20.9]} 15... Qxf6
{[%clk 0:02:32.2]} 16. Nxd6 {[%clk 0:02:12.7]} 16... Rxc1 {[%clk 0:02:29.8]} 0-1

[Event "Early-Titled-Tuesday-Blitz-May-14-2024"]
[Site "Chess.com"]
[Date "2024.05.14"]
[Round "7"]
[White "GMSrinath"]
[Black "JiaHaoxiang"]
[Result "1-0"]
[WhiteElo "2836"]
[BlackElo "2616"]
[TimeControl "180+1"]
[EndTime "9:14:56 PDT"]
[Termination "GMSrinath won by resignation"]

1. e4 {[%clk 0:03:00.9]} 1... c5 {[%clk 0:02:59.5]} 2. Nf3 {[%clk 0:03:01.2]}
2... d6 {[%clk 0:02:59.7]} 3. d4 {[%clk 0:03:00.6]} 3... cxd4 {[%clk 0:03:00.6]}
4. Nxd4 {[%clk 0:03:01.5]} 4... Nf6 {[%clk 0:03:00.5]} 5. Nc3 {[%clk 0:03:02.1]}
5... g6 {[%clk 0:02:59.4]} 6. Be3 {[%clk 0:03:00.9]} 6... Bg7 {[%clk 0:02:59.5]}
7. f3 {[%clk 0:03:01.6]} 7... O-O {[%clk 0:02:59.9]} 8. Qd2 {[%clk 0:03:02.3]}
8... Nc6 {[%clk 0:02:59.8]} 9. O-O-O {[%clk 0:03:02.9]} 9... d5 {[%clk
0:02:59.8]} 10. exd5 {[%clk 0:02:52.9]} 10... Nxd5 {[%clk 0:03:00.4]} 11. Nxc6
{[%clk 0:02:53.6]} 11... bxc6 {[%clk 0:02:59.7]} 12. Bd4 {[%clk 0:02:54.3]}
12... Bxd4 {[%clk 0:02:58.2]} 13. Qxd4 {[%clk 0:02:54.6]} 13... Qb6 {[%clk
0:02:58.7]} 14. Na4 {[%clk 0:02:55.2]} 14... Qc7 {[%clk 0:02:58.4]} 15. Bc4
{[%clk 0:02:53]} 15... Be6 {[%clk 0:02:58.1]} 16. Nc5 {[%clk 0:02:48.1]} 16...
Bf5 {[%clk 0:02:51.6]} 17. g4 {[%clk 0:02:47.1]} 17... Bc8 {[%clk 0:02:39.7]}
18. h4 {[%clk 0:02:44.6]} 18... Rd8 {[%clk 0:02:36.4]} 19. h5 {[%clk 0:02:41.9]}
19... Bb7 {[%clk 0:02:29.4]} 20. hxg6 {[%clk 0:02:38.6]} 20... Nf6 {[%clk
0:02:16.2]} 21. Bxf7+ {[%clk 0:02:29.8]} 1-0

[Event "Early-Titled-Tuesday-Blitz-May-14-2024"]
[Site "Chess.com"]
[Date "2024.05.14"]
[Round "7"]
[White "romulocardoso"]
[Black "Mbneu"]
[Result "1-0"]
[WhiteElo "2315"]
[BlackElo "2214"]
[TimeControl "180+1"]
[EndTime "9:15:13 PDT"]
[Termination "romulocardoso won by resignation"]

1. e4 {[%clk 0:03:00.9]} 1... c5 {[%clk 0:02:54.5]} 2. Nf3 {[%clk 0:02:57.6]}
2... Nf6 {[%clk 0:02:54.2]} 3. e5 {[%clk 0:02:57]} 3... Nd5 {[%clk 0:02:54.1]}
4. Bc4 {[%clk 0:02:57]} 4... Nb6 {[%clk 0:02:53.4]} 5. Be2 {[%clk 0:02:57.4]}
5... Nc6 {[%clk 0:02:51.6]} 6. c3 {[%clk 0:02:55.8]} 6... d5 {[%clk 0:02:51.7]}
7. exd6 {[%clk 0:02:56]} 7... exd6 {[%clk 0:02:49.6]} 8. O-O {[%clk 0:02:56.9]}
8... Be7 {[%clk 0:02:49.7]} 9. d4 {[%clk 0:02:55.6]} 9... O-O {[%clk 0:02:48.9]}
10. Be3 {[%clk 0:02:54]} 10... Bg4 {[%clk 0:02:46.5]} 11. Nbd2 {[%clk
0:02:37.9]} 11... Nd5 {[%clk 0:02:44.8]} 12. h3 {[%clk 0:02:27.5]} 12... Bh5
{[%clk 0:02:42.3]} 13. Nc4 {[%clk 0:02:23.1]} 13... b5 {[%clk 0:02:39.3]} 14.
dxc5 {[%clk 0:02:18.6]} 14... dxc5 {[%clk 0:02:30.5]} 15. Nce5 {[%clk
0:02:18.6]} 15... Nxe5 {[%clk 0:02:23.7]} 16. Nxe5 {[%clk 0:02:19.5]} 16... Nxe3
{[%clk 0:02:18.8]} 17. fxe3 {[%clk 0:02:19.8]} 17... Qxd1 {[%clk 0:02:13.7]} 18.
Bxd1 {[%clk 0:02:20.5]} 18... Bxd1 {[%clk 0:02:10.2]} 19. Raxd1 {[%clk
0:02:21.4]} 19... Rad8 {[%clk 0:02:00]} 20. Nc6 {[%clk 0:02:21.2]} 20... Rxd1
{[%clk 0:01:58.1]} 21. Nxe7+ {[%clk 0:02:19.8]} 1-0

[Event "Early-Titled-Tuesday-Blitz-May-14-2024"]
[Site "Chess.com"]
[Date "2024.05.14"]
[Round "7"]
[White "HeroWilczek"]
[Black "JERO-8914"]
[Result "0-1"]
[WhiteElo "2534"]
[BlackElo "2414"]
[TimeControl "180+1"]
[EndTime "9:15:18 PDT"]
[Termination "JERO-8914 won by checkmate"]

1. c4 {[%clk 0:03:00.9]} 1... Nf6 {[%clk 0:02:58.3]} 2. Nf3 {[%clk 0:02:59.4]}
2... e6 {[%clk 0:02:58.2]} 3. b3 {[%clk 0:02:59.1]} 3... d5 {[%clk 0:02:58.6]}
4. e3 {[%clk 0:02:58.8]} 4... c5 {[%clk 0:02:59.1]} 5. Bb2 {[%clk 0:02:58.6]}
5... Nc6 {[%clk 0:02:59.3]} 6. cxd5 {[%clk 0:02:59.1]} 6... exd5 {[%clk
0:02:59.9]} 7. Bb5 {[%clk 0:02:59.6]} 7... a6 {[%clk 0:03:00]} 8. Bxc6+ {[%clk
0:02:59.5]} 8... bxc6 {[%clk 0:03:00.9]} 9. O-O {[%clk 0:02:59.6]} 9... Be7
{[%clk 0:03:00.8]} 10. Ne5 {[%clk 0:03:00.2]} 10... Bd7 {[%clk 0:02:59.9]} 11.
d4 {[%clk 0:03:00.8]} 11... cxd4 {[%clk 0:02:59.2]} 12. exd4 {[%clk 0:03:01.7]}
12... O-O {[%clk 0:02:59.1]} 13. Nd2 {[%clk 0:03:02.3]} 13... a5 {[%clk
0:02:57.3]} 14. Rc1 {[%clk 0:03:02.2]} 14... a4 {[%clk 0:02:54.3]} 15. Nxc6
{[%clk 0:02:58.9]} 15... Bxc6 {[%clk 0:02:55.2]} 16. Rxc6 {[%clk 0:02:59.2]}
16... axb3 {[%clk 0:02:56]} 17. axb3 {[%clk 0:02:59.7]} 17... Qd7 {[%clk
0:02:54.4]} 18. Qc2 {[%clk 0:02:53.5]} 18... Ra2 {[%clk 0:02:52.5]} 19. Rc1
{[%clk 0:02:38.4]} 19... Ba3 {[%clk 0:02:46.3]} 20. Rc7 {[%clk 0:02:27.9]} 20...
Rxb2 {[%clk 0:02:44]} 21. Qd3 {[%clk 0:02:05.8]} 21... Rxd2 {[%clk 0:02:19.9]}
22. Qxd2 {[%clk 0:02:04.5]} 22... Bxc1 {[%clk 0:02:19.8]} 23. Qxc1 {[%clk
0:02:03.8]} 23... Qb5 {[%clk 0:02:19.1]} 24. Qc3 {[%clk 0:02:03.7]} 24... Ne4
{[%clk 0:02:19]} 25. Qc2 {[%clk 0:02:02.8]} 25... Qb4 {[%clk 0:02:16.6]} 26. f3
{[%clk 0:02:03.6]} 26... Qe1# {[%clk 0:02:14.6]} 0-1

[Event "Early-Titled-Tuesday-Blitz-May-14-2024"]
[Site "Chess.com"]
[Date "2024.05.14"]
[Round "7"]
[White "Gangster-accountant01"]
[Black "OppieZippy"]
[Result "1-0"]
[WhiteElo "2548"]
[BlackElo "2345"]
[TimeControl "180+1"]
[EndTime "9:15:41 PDT"]
[Termination "Gangster-accountant01 won by resignation"]

1. c4 {[%clk 0:02:58.6]} 1... b6 {[%clk 0:02:58.1]} 2. d4 {[%clk 0:02:56.8]}
2... Bb7 {[%clk 0:02:55.8]} 3. d5 {[%clk 0:02:56.2]} 3... Nf6 {[%clk 0:02:52.3]}
4. Nc3 {[%clk 0:02:56.2]} 4... e5 {[%clk 0:02:52.3]} 5. e3 {[%clk 0:02:48.1]}
5... Bc5 {[%clk 0:02:51]} 6. Bd3 {[%clk 0:02:47.8]} 6... O-O {[%clk 0:02:50.8]}
7. Nge2 {[%clk 0:02:47.9]} 7... a5 {[%clk 0:02:50.8]} 8. O-O {[%clk 0:02:48]}
8... Na6 {[%clk 0:02:50.4]} 9. Ng3 {[%clk 0:02:46.1]} 9... Re8 {[%clk
0:02:47.4]} 10. Nce4 {[%clk 0:02:44.4]} 10... Bf8 {[%clk 0:02:44.2]} 11. b3
{[%clk 0:02:35]} 11... g6 {[%clk 0:02:37.6]} 12. Nxf6+ {[%clk 0:02:30.9]} 12...
Qxf6 {[%clk 0:02:37.4]} 13. Bb2 {[%clk 0:02:31.1]} 13... Qd8 {[%clk 0:02:36.4]}
14. f4 {[%clk 0:02:28.5]} 14... exf4 {[%clk 0:02:35.7]} 15. exf4 {[%clk
0:02:27.1]} 15... Nc5 {[%clk 0:02:32.7]} 16. Bc2 {[%clk 0:02:17.9]} 16... Bg7
{[%clk 0:02:31.8]} 17. Bxg7 {[%clk 0:02:12.9]} 17... Kxg7 {[%clk 0:02:32.7]} 18.
f5 {[%clk 0:02:13.2]} 18... c6 {[%clk 0:02:22.1]} 19. Qd2 {[%clk 0:02:06]} 19...
h6 {[%clk 0:02:08.8]} 20. fxg6 {[%clk 0:02:00.5]} 20... fxg6 {[%clk 0:02:06.6]}
21. Qd4+ {[%clk 0:01:59.8]} 21... Kg8 {[%clk 0:02:02.3]} 22. Bxg6 {[%clk
0:01:58.5]} 22... Re7 {[%clk 0:02:00.4]} 23. Nf5 {[%clk 0:01:56]} 1-0

[Event "Early-Titled-Tuesday-Blitz-May-14-2024"]
[Site "Chess.com"]
[Date "2024.05.14"]
[Round "7"]
[White "ilimchess2"]
[Black "pfalcon1949"]
[Result "1-0"]
[WhiteElo "2298"]
[BlackElo "1919"]
[TimeControl "180+1"]
[EndTime "9:15:57 PDT"]
[Termination "ilimchess2 won by resignation"]

1. d4 {[%clk 0:03:00.4]} 1... d5 {[%clk 0:02:58.6]} 2. Nf3 {[%clk 0:03:00.9]}
2... e6 {[%clk 0:02:58.4]} 3. Bf4 {[%clk 0:03:01.3]} 3... Nf6 {[%clk 0:02:53.5]}
4. e3 {[%clk 0:03:01.4]} 4... Bd6 {[%clk 0:02:52.3]} 5. Nbd2 {[%clk 0:03:01.3]}
5... O-O {[%clk 0:02:51.5]} 6. c3 {[%clk 0:03:01.5]} 6... c5 {[%clk 0:02:50.2]}
7. Bd3 {[%clk 0:03:02]} 7... b6 {[%clk 0:02:49.2]} 8. Bxd6 {[%clk 0:02:58.7]}
8... Qxd6 {[%clk 0:02:48.3]} 9. Ne5 {[%clk 0:02:59.4]} 9... Nc6 {[%clk
0:02:48.2]} 10. f4 {[%clk 0:02:59.6]} 10... Bb7 {[%clk 0:02:47.5]} 11. Qf3
{[%clk 0:02:58.1]} 11... Ne7 {[%clk 0:02:47.2]} 12. Qh3 {[%clk 0:02:57.6]} 12...
g6 {[%clk 0:02:45]} 13. g4 {[%clk 0:02:49.4]} 13... Ne4 {[%clk 0:02:42.4]} 14.
O-O-O {[%clk 0:02:28.7]} 14... cxd4 {[%clk 0:02:37.3]} 15. exd4 {[%clk
0:02:28.5]} 15... Rac8 {[%clk 0:02:37.3]} 16. Qh6 {[%clk 0:02:17.7]} 16... Rxc3+
{[%clk 0:02:33]} 17. Kb1 {[%clk 0:02:14.1]} 17... Rxd3 {[%clk 0:02:29.3]} 18.
Nxd3 {[%clk 0:02:13]} 18... Rc8 {[%clk 0:02:19.1]} 19. h4 {[%clk 0:02:07.6]}
19... Ba6 {[%clk 0:02:16.6]} 20. Nxe4 {[%clk 0:02:06.9]} 20... dxe4 {[%clk
0:02:15.1]} 21. Ne5 {[%clk 0:02:05.9]} 21... e3 {[%clk 0:01:51.5]} 22. h5 {[%clk
0:02:04.5]} 22... Rf8 {[%clk 0:01:43]} 23. hxg6 {[%clk 0:02:04]} 1-0

[Event "Early-Titled-Tuesday-Blitz-May-14-2024"]
[Site "Chess.com"]
[Date "2024.05.14"]
[Round "7"]
[White "ValeriyGrinev"]
[Black "flubs"]
[Result "1-0"]
[WhiteElo "2598"]
[BlackElo "2425"]
[TimeControl "180+1"]
[EndTime "9:15:59 PDT"]
[Termination "ValeriyGrinev won by resignation"]

1. d4 {[%clk 0:03:00.9]} 1... d5 {[%clk 0:02:59.2]} 2. c4 {[%clk 0:03:00.7]}
2... Nc6 {[%clk 0:02:59.4]} 3. cxd5 {[%clk 0:02:59.7]} 3... Qxd5 {[%clk
0:02:58.7]} 4. e3 {[%clk 0:02:59.9]} 4... e5 {[%clk 0:02:58.1]} 5. Nc3 {[%clk
0:03:00.1]} 5... Bb4 {[%clk 0:02:57.8]} 6. Bd2 {[%clk 0:03:00.6]} 6... Bxc3
{[%clk 0:02:57.3]} 7. Bxc3 {[%clk 0:03:01.5]} 7... exd4 {[%clk 0:02:56.9]} 8.
Ne2 {[%clk 0:03:01.9]} 8... Nf6 {[%clk 0:02:56.1]} 9. Nxd4 {[%clk 0:03:01.4]}
9... O-O {[%clk 0:02:55.7]} 10. Nxc6 {[%clk 0:03:00.9]} 10... Qxc6 {[%clk
0:02:55.1]} 11. Rc1 {[%clk 0:03:01.6]} 11... Re8 {[%clk 0:02:46.1]} 12. Bd4
{[%clk 0:02:54.1]} 12... Qd6 {[%clk 0:02:40.6]} 13. Be2 {[%clk 0:02:52.2]} 13...
Bf5 {[%clk 0:02:32.1]} 14. O-O {[%clk 0:02:51.7]} 14... c6 {[%clk 0:02:29.9]}
15. Qb3 {[%clk 0:02:51.3]} 15... b6 {[%clk 0:02:19.2]} 16. Rfd1 {[%clk
0:02:44.6]} 16... Rad8 {[%clk 0:02:14.6]} 17. Bxb6 {[%clk 0:02:39]} 17... Qxd1+
{[%clk 0:01:52.1]} 18. Rxd1 {[%clk 0:02:37.3]} 18... Rb8 {[%clk 0:01:45.8]} 19.
Qa4 {[%clk 0:02:24.6]} 19... Rxb6 {[%clk 0:01:42.8]} 20. b3 {[%clk 0:02:20.7]}
20... a6 {[%clk 0:01:23.1]} 21. Qa5 {[%clk 0:02:18.3]} 21... Rbb8 {[%clk
0:01:17]} 22. Qxf5 {[%clk 0:02:14.1]} 1-0

[Event "Early-Titled-Tuesday-Blitz-May-14-2024"]
[Site "Chess.com"]
[Date "2024.05.14"]
[Round "7"]
[White "agvega14"]
[Black "grozdanovic_a"]
[Result "1-0"]
[WhiteElo "2159"]
[BlackElo "2307"]
[TimeControl "180+1"]
[EndTime "9:16:16 PDT"]
[Termination "agvega14 won by checkmate"]

1. e4 {[%clk 0:02:55.6]} 1... c5 {[%clk 0:03:00.5]} 2. Nf3 {[%clk 0:02:54.8]}
2... d6 {[%clk 0:03:01.2]} 3. c3 {[%clk 0:02:54.3]} 3... Nf6 {[%clk 0:02:52.1]}
4. Be2 {[%clk 0:02:53.6]} 4... Bd7 {[%clk 0:02:49]} 5. d3 {[%clk 0:02:52.7]}
5... e6 {[%clk 0:02:45.4]} 6. O-O {[%clk 0:02:53.3]} 6... Nc6 {[%clk 0:02:45.5]}
7. h3 {[%clk 0:02:52.6]} 7... Be7 {[%clk 0:02:42.8]} 8. Be3 {[%clk 0:02:53]}
8... O-O {[%clk 0:02:42.3]} 9. Nbd2 {[%clk 0:02:53.4]} 9... e5 {[%clk
0:02:30.8]} 10. a4 {[%clk 0:02:51.8]} 10... a6 {[%clk 0:02:29.9]} 11. Qc2 {[%clk
0:02:45]} 11... Rb8 {[%clk 0:02:28.8]} 12. Rfd1 {[%clk 0:02:33.1]} 12... Be6
{[%clk 0:02:22.8]} 13. d4 {[%clk 0:02:23.1]} 13... cxd4 {[%clk 0:02:18.8]} 14.
cxd4 {[%clk 0:02:23.3]} 14... exd4 {[%clk 0:02:18.5]} 15. Nxd4 {[%clk
0:02:22.8]} 15... Nxd4 {[%clk 0:02:18.2]} 16. Bxd4 {[%clk 0:02:22.8]} 16... Qd7
{[%clk 0:02:18.1]} 17. Qd3 {[%clk 0:02:15.6]} 17... d5 {[%clk 0:02:06.3]} 18. e5
{[%clk 0:02:13.8]} 18... Ne8 {[%clk 0:02:04.6]} 19. Qg3 {[%clk 0:02:02.1]} 19...
Nc7 {[%clk 0:01:55.1]} 20. Bd3 {[%clk 0:01:59.4]} 20... Bf5 {[%clk 0:01:51.1]}
21. e6 {[%clk 0:01:50.5]} 21... Bd6 {[%clk 0:01:24.2]} 22. Qxg7# {[%clk
0:01:44.7]} 1-0

[Event "Early-Titled-Tuesday-Blitz-May-14-2024"]
[Site "Chess.com"]
[Date "2024.05.14"]
[Round "7"]
[White "MdChess1734"]
[Black "baki83"]
[Result "0-1"]
[WhiteElo "2409"]
[BlackElo "2924"]
[TimeControl "180+1"]
[EndTime "9:16:24 PDT"]
[Termination "baki83 won by resignation"]

1. d4 {[%clk 0:02:59.5]} 1... d5 {[%clk 0:02:59.8]} 2. Bf4 {[%clk 0:02:59.5]}
2... Bf5 {[%clk 0:02:59.1]} 3. e3 {[%clk 0:02:59.7]} 3... e6 {[%clk 0:02:59.5]}
4. Nf3 {[%clk 0:02:59.8]} 4... Nf6 {[%clk 0:02:59.8]} 5. Nbd2 {[%clk 0:02:56.3]}
5... Bd6 {[%clk 0:02:59.7]} 6. Bg3 {[%clk 0:02:55.7]} 6... O-O {[%clk
0:02:59.6]} 7. Be2 {[%clk 0:02:54.4]} 7... c5 {[%clk 0:02:59.7]} 8. O-O {[%clk
0:02:53]} 8... Nc6 {[%clk 0:02:59.8]} 9. dxc5 {[%clk 0:02:43.7]} 9... Bxc5
{[%clk 0:02:59.7]} 10. Nb3 {[%clk 0:02:44.1]} 10... Bb6 {[%clk 0:02:59.8]} 11.
c4 {[%clk 0:02:43.5]} 11... Rc8 {[%clk 0:02:56.9]} 12. Rc1 {[%clk 0:02:42.5]}
12... h6 {[%clk 0:02:47.3]} 13. Bh4 {[%clk 0:02:38.8]} 13... dxc4 {[%clk
0:02:42.4]} 14. Bxc4 {[%clk 0:02:37.3]} 14... Qxd1 {[%clk 0:02:36]} 15. Rfxd1
{[%clk 0:02:37.3]} 15... Ne4 {[%clk 0:02:36.4]} 16. h3 {[%clk 0:02:24.6]} 16...
g5 {[%clk 0:02:34.5]} 17. Bg3 {[%clk 0:02:07.9]} 17... Nxg3 {[%clk 0:02:34.4]}
18. fxg3 {[%clk 0:02:08.8]} 18... Bxe3+ {[%clk 0:02:34.5]} 19. Kh2 {[%clk
0:02:09.3]} 19... Bxc1 {[%clk 0:02:34.6]} 20. Rxc1 {[%clk 0:02:09.3]} 20... Nb4
{[%clk 0:02:34.1]} 21. Nfd4 {[%clk 0:02:02.2]} 21... Bd3 {[%clk 0:02:30.5]} 22.
Bxd3 {[%clk 0:01:58.8]} 22... Nxd3 {[%clk 0:02:31.4]} 23. Rb1 {[%clk 0:01:54.6]}
23... Rfd8 {[%clk 0:02:30.7]} 24. a4 {[%clk 0:01:50]} 24... a6 {[%clk
0:02:30.2]} 25. a5 {[%clk 0:01:49.1]} 25... Nc5 {[%clk 0:02:28.2]} 26. h4 {[%clk
0:01:38.8]} 26... Nxb3 {[%clk 0:02:27.5]} 27. Nxb3 {[%clk 0:01:37.3]} 27... Rd5
{[%clk 0:02:27.9]} 28. Re1 {[%clk 0:01:30.6]} 28... Rc4 {[%clk 0:02:25.6]} 29.
hxg5 {[%clk 0:01:27.9]} 29... hxg5 {[%clk 0:02:25.3]} 30. Re3 {[%clk 0:01:26.6]}
30... Rb4 {[%clk 0:02:24]} 31. Rc3 {[%clk 0:01:22.1]} 31... Kg7 {[%clk
0:02:23.6]} 32. Nd2 {[%clk 0:01:19.6]} 32... Rxd2 {[%clk 0:02:22]} 0-1

[Event "Early-Titled-Tuesday-Blitz-May-14-2024"]
[Site "Chess.com"]
[Date "2024.05.14"]
[Round "7"]
[White "Kirill_Klukin"]
[Black "english_player_89"]
[Result "1-0"]
[WhiteElo "2827"]
[BlackElo "2615"]
[TimeControl "180+1"]
[EndTime "9:16:45 PDT"]
[Termination "Kirill_Klukin won by resignation"]

1. e4 {[%clk 0:03:00.9]} 1... e5 {[%clk 0:03:00]} 2. d4 {[%clk 0:02:59.1]} 2...
exd4 {[%clk 0:03:00]} 3. Qxd4 {[%clk 0:02:59.4]} 3... Nc6 {[%clk 0:03:00.4]} 4.
Qe3 {[%clk 0:02:59.7]} 4... Nf6 {[%clk 0:03:00.8]} 5. Nc3 {[%clk 0:02:59.9]}
5... Be7 {[%clk 0:03:00.8]} 6. Bd2 {[%clk 0:02:59.7]} 6... O-O {[%clk
0:03:00.7]} 7. O-O-O {[%clk 0:03:00]} 7... d5 {[%clk 0:03:01.3]} 8. exd5 {[%clk
0:02:36.1]} 8... Nxd5 {[%clk 0:03:00.9]} 9. Qf3 {[%clk 0:02:34.1]} 9... Nxc3
{[%clk 0:02:53.2]} 10. Bxc3 {[%clk 0:02:31.9]} 10... Bg5+ {[%clk 0:02:52.7]} 11.
Kb1 {[%clk 0:02:29.3]} 11... Qe7 {[%clk 0:02:38.6]} 12. h4 {[%clk 0:02:23]}
12... Bh6 {[%clk 0:02:30.2]} 13. g4 {[%clk 0:02:12.1]} 13... g6 {[%clk
0:02:19.2]} 14. Re1 {[%clk 0:01:33.5]} 14... Be6 {[%clk 0:02:14.4]} 15. Bc4
{[%clk 0:01:29]} 15... Bg7 {[%clk 0:02:13.5]} 16. Nh3 {[%clk 0:01:23.3]} 16...
Bxc3 {[%clk 0:01:49.8]} 17. Qxc3 {[%clk 0:01:20.4]} 17... Qc5 {[%clk 0:01:50]}
18. Rxe6 {[%clk 0:01:14.3]} 18... b5 {[%clk 0:01:38.5]} 19. Rxg6+ {[%clk
0:01:08.5]} 1-0

[Event "Early-Titled-Tuesday-Blitz-May-14-2024"]
[Site "Chess.com"]
[Date "2024.05.14"]
[Round "7"]
[White "Gumugama"]
[Black "Kushch_Nikolai"]
[Result "1-0"]
[WhiteElo "2295"]
[BlackElo "2409"]
[TimeControl "180+1"]
[EndTime "9:16:58 PDT"]
[Termination "Gumugama won by resignation"]

1. e4 {[%clk 0:03:00.9]} 1... c5 {[%clk 0:02:59.5]} 2. Nf3 {[%clk 0:03:00.1]}
2... e6 {[%clk 0:02:59.6]} 3. c3 {[%clk 0:02:58.2]} 3... d5 {[%clk 0:02:58.9]}
4. e5 {[%clk 0:02:54.5]} 4... d4 {[%clk 0:02:58.7]} 5. Bd3 {[%clk 0:02:44.1]}
5... Nc6 {[%clk 0:02:56.5]} 6. O-O {[%clk 0:02:42.3]} 6... Nge7 {[%clk 0:02:56]}
7. b4 {[%clk 0:02:34.7]} 7... cxb4 {[%clk 0:02:48.4]} 8. Bb2 {[%clk 0:02:34.5]}
8... bxc3 {[%clk 0:02:32.8]} 9. dxc3 {[%clk 0:02:33.9]} 9... Nd5 {[%clk
0:02:32.1]} 10. cxd4 {[%clk 0:02:18.5]} 10... Bb4 {[%clk 0:02:31.5]} 11. Nbd2
{[%clk 0:02:09.3]} 11... O-O {[%clk 0:02:28.8]} 12. Ne4 {[%clk 0:02:04.2]} 12...
f5 {[%clk 0:02:22.1]} 13. exf6 {[%clk 0:02:01.2]} 13... Nxf6 {[%clk 0:02:21.5]}
14. Nxf6+ {[%clk 0:01:57.8]} 14... Qxf6 {[%clk 0:02:14.7]} 15. Rb1 {[%clk
0:01:55.6]} 15... Qf4 {[%clk 0:02:05.7]} 16. Bc1 {[%clk 0:01:24.6]} 16... Qc7
{[%clk 0:01:56]} 17. Qc2 {[%clk 0:01:16.3]} 17... g6 {[%clk 0:01:51.8]} 18. Rxb4
{[%clk 0:01:13.9]} 18... Qd6 {[%clk 0:01:42.2]} 19. Rb3 {[%clk 0:01:05]} 19...
Nxd4 {[%clk 0:01:40.1]} 20. Nxd4 {[%clk 0:01:02.8]} 20... Qxd4 {[%clk
0:01:40.3]} 21. Bb2 {[%clk 0:01:01.9]} 21... Qh4 {[%clk 0:01:38.4]} 22. Bxg6
{[%clk 0:00:59.9]} 22... Bd7 {[%clk 0:01:35.5]} 23. Rh3 {[%clk 0:00:57]} 1-0